[Event "28th WSCC Open 50 2018"]
[Site "Bled"]
[Date "2018.11.18"]
[Round "1"]
[White "Soffer, Ram"]
[Black "Smith, Peter R"]
[Result "1-0"]
[ECO "B31"]
[WhiteElo "2472"]
[BlackElo "2049"]
[Annotator "ChessBase"]
[PlyCount "58"]
[EventDate "2018.11.17"]
[EventType "swiss"]
[EventCountry "SLO"]
[SourceTitle "playchess.com"]
[Source "ChessBase"]
[SourceQuality "1"]
[TimeControl "40/5400+30:1800+30"]

1. e4 {[%emt 0:00:00]} c5 {[%emt 0:00:00]} 2. Nf3 {[%emt 0:00:00]} Nc6 {[%emt 0:00:09]} 3. Bb5 {[%emt 0:00:00]} g6 {[%emt 0:00:09]} 4. Bxc6 {[%emt 0:00:00]} dxc6 {[%emt 0:00:12]} 5. d3 {[%emt 0:00:06]} Bg7 {[%emt 0:00:19]} 6. h3 {[%emt 0:00:09]} e5 {[%emt 0:00:43]} 7. O-O {[%emt 0:05:57]} Ne7 {[%emt 0:01:41]} 8. Be3 {[%emt 0:05:06]} b6 {[%emt 0:00:14]} 9. a4 {[%emt 0:00:32]} a5 {[%emt 0:04:30]} 10. Na3 {[%emt 0:03:07]} O-O {[%emt 0:03:25]} 11. Nc4 {[%emt 0:01:38]} Qc7 {[%emt 0:01:13]} 12. b4 {[%emt 0:04:30]} b5 {[%emt 0:08:58]} 13. axb5 {[%emt 0:02:53]} cxb5 {[%emt 0:00:55]} 14. Rxa5 {[%emt 0:00:27]} Ba6 {[%emt 0:06:22]} 15. Ncd2 {[%emt 0:04:23]} cxb4 {[%emt 0:04:36]} 16. Nb3 {[%emt 0:06:11]} Nc6 {[%emt 0:09:30]} 17. Ra1 {[%emt 0:02:14]} Rfb8 {[%emt 0:05:46]} 18. Qd2 {[%emt 0:04:01]} Bc8 {[%emt 0:01:49]} 19. Bh6 {[%emt 0:12:31]} Bh8 {[%emt 0:03:24]} 20. Rxa8 {[%emt 0:02:05]} Rxa8 {[%emt 0:00:06]} 21. d4 {[%emt 0:00:06]} exd4 {[%emt 0:01:35]} 22. Nfxd4 {[%emt 0:01:11]} Nxd4 {[%emt 0:07:28]} 23. Nxd4 {[%emt 0:00:13]} Bd7 {[%emt 0:07:59]} 24. Qxb4 {[%emt 0:02:59]} Qe5 {[%emt 0:05:11]} 25. Ne2 {[%emt 0:04:52]} Bf6 {[%emt 0:07:46]} 26. Rd1 {[%emt 0:07:40]} Bxh3 {[%emt 0:06:05]} 27. gxh3 {[%emt 0:04:05]} Qh5 {[%emt 0:00:19]} 28. Qd2 {[%emt 0:00:12]} g5 {[%emt 0:00:43]} 29. Qd5 {[%emt 0:05:53]} Qxh6 {[%emt 0:01:10]} 1-0

[Event "28th WSCC Open 50 2018"]
[Site "Bled"]
[Date "2018.11.18"]
[Round "1"]
[White "Arakhamia-Grant, Ketevan"]
[Black "Spiess, Thomas"]
[Result "1-0"]
[ECO "B48"]
[WhiteElo "2373"]
[BlackElo "1975"]
[Annotator "ChessBase"]
[PlyCount "48"]
[EventDate "2018.11.17"]
[EventType "swiss"]
[EventCountry "SLO"]
[SourceTitle "playchess.com"]
[Source "ChessBase"]
[SourceQuality "1"]
[TimeControl "40/5400+30:1800+30"]

1. e4 {[%emt 0:00:00]} c5 {[%emt 0:00:00]} 2. Nf3 {[%emt 0:00:00]} e6 {[%emt 0:00:00]} 3. d4 {[%emt 0:00:00]} cxd4 {[%emt 0:00:00]} 4. Nxd4 {[%emt 0:00:00]} Nc6 {[%emt 0:00:00]} 5. Nc3 {[%emt 0:00:00]} Qc7 {[%emt 0:00:06]} 6. Be3 {[%emt 0:00:08]} a6 {[%emt 0:00:28]} 7. Qd2 {[%emt 0:00:22]} b5 {[%emt 0:01:00]} 8. O-O-O {[%emt 0:01:25]} Bb7 {[%emt 0:02:35]} 9. Bf4 {[%emt 0:14:19]} e5 {[%emt 0:32:13]} 10. Nxc6 {[%emt 0:00:31]} exf4 {[%emt 0:05:44]} 11. Na5 {[%emt 0:36:22]} b4 {[%emt 0:07:53]} 12. Nxb7 {[%emt 0:09:18]} bxc3 {[%emt 0:00:32]} 13. Nd6+ {[%emt 0:04:08]} Bxd6 {[%emt 0:16:22]} 14. Qxd6 {[%emt 0:00:07]} cxb2+ {[%emt 0:01:36]} 15. Kb1 {[%emt 0:00:30]} Qxd6 {[%emt 0:08:24]} 16. Rxd6 {[%emt 0:00:06]} a5 {[%emt 0:04:32]} 17. Bb5 {[%emt 0:01:42]} Rb8 {[%emt 0:05:36]} 18. a4 {[%emt 0:01:15]} Nf6 {[%emt 0:03:15]} 19. f3 {[%emt 0:00:30]} Ke7 {[%emt 0:01:19]} 20. Rhd1 {[%emt 0:01:12]} Rhc8 {[%emt 0:04:46]} 21. e5 {[%emt 0:03:06]} Ne8 {[%emt 0:01:03]} 22. Rxd7+ {[%emt 0:00:26]} Ke6 {[%emt 0:01:56]} 23. R7d5 {[%emt 0:02:35]} Rc7 {[%emt 0:00:38]} 24. Rd8 {[%emt 0:01:36]} Ke7 {[%emt 0:01:18]} 1-0

[Event "28th WSCC Open 50 2018"]
[Site "Bled"]
[Date "2018.11.18"]
[Round "1"]
[White "Siedl, Manfred"]
[Black "Bischoff, Klaus"]
[Result "0-1"]
[ECO "A05"]
[WhiteElo "2071"]
[BlackElo "2507"]
[Annotator "ChessBase"]
[PlyCount "80"]
[EventDate "2018.11.17"]
[EventType "swiss"]
[EventCountry "SLO"]
[SourceTitle "playchess.com"]
[Source "ChessBase"]
[SourceQuality "1"]
[TimeControl "40/5400+30:1800+30"]

1. Nf3 {[%emt 0:00:00]} Nf6 {[%emt 0:00:00]} 2. e3 {[%emt 0:00:03]} d6 {[%emt 0:01:30]} 3. d4 {[%emt 0:02:26]} g6 {[%emt 0:00:38]} 4. Be2 {[%emt 0:03:31]} Bg7 {[%emt 0:00:10]} 5. O-O {[%emt 0:00:12]} O-O {[%emt 0:00:09]} 6. c4 {[%emt 0:04:18]} Nbd7 {[%emt 0:00:50]} 7. Nc3 {[%emt 0:01:12]} e5 {[%emt 0:00:21]} 8. Qc2 {[%emt 0:03:11]} Re8 {[%emt 0:01:34]} 9. dxe5 {[%emt 0:04:34]} dxe5 {[%emt 0:01:39]} 10. e4 {[%emt 0:00:58]} c6 {[%emt 0:02:19]} 11. Re1 {[%emt 0:05:35]} Nh5 {[%emt 0:03:39]} 12. g3 {[%emt 0:06:56]} Bf8 {[%emt 0:07:33]} 13. Nh4 {[%emt 0:10:34]} Ng7 {[%emt 0:02:10]} 14. Ng2 {[%emt 0:06:48]} Ne6 {[%emt 0:00:55]} 15. Be3 {[%emt 0:05:29]} Nd4 {[%emt 0:01:26]} 16. Qd1 {[%emt 0:01:44]} Nc5 {[%emt 0:01:26]} 17. Rb1 {[%emt 0:04:11]} a5 {[%emt 0:03:06]} 18. Kh1 {[%emt 0:05:10]} Bg7 {[%emt 0:03:22]} 19. Bf1 {[%emt 0:05:34]} h5 {[%emt 0:03:10]} 20. f3 {[%emt 0:04:19]} a4 {[%emt 0:01:10]} 21. Bf2 {[%emt 0:06:42]} Qf6 {[%emt 0:04:20]} 22. Nh4 {[%emt 0:02:59]} Rd8 {[%emt 0:07:06]} 23. f4 {[%emt 0:06:52]} Bg4 {[%emt 0:01:07]} 24. Qc1 {[%emt 0:02:06]} exf4 {[%emt 0:04:27]} 25. e5 {[%emt 0:00:35]} Qe7 {[%emt 0:05:11]} 26. gxf4 {[%emt 0:01:15]} Bh6 {[%emt 0:00:22]} 27. Qe3 {[%emt 0:01:50]} Nde6 {[%emt 0:01:59]} 28. Ng2 {[%emt 0:02:27]} Rd4 {[%emt 0:02:28]} 29. Qg3 {[%emt 0:01:07]} Bxf4 {[%emt 0:00:50]} 30. Nxf4 {[%emt 0:00:45]} Rxf4 {[%emt 0:00:06]} 31. Qg1 {[%emt 0:01:30]} Bf3+ {[%emt 0:00:55]} 32. Bg2 {[%emt 0:00:01]} Rg4 {[%emt 0:00:48]} 33. Bg3 {[%emt 0:00:29]} Bxg2+ {[%emt 0:00:26]} 34. Qxg2 {[%emt 0:00:02]} h4 {[%emt 0:00:17]} 35. Qf3 {[%emt 0:00:13]} Rxc4 {[%emt 0:00:11]} 36. Bf2 {[%emt 0:00:32]} Rd8 {[%emt 0:00:33]} 37. Bxc5 {[%emt 0:01:38]} Nxc5 {[%emt 0:00:19]} 38. Rbd1 {[%emt 0:00:40]} Rxd1 {[%emt 0:00:33]} 39. Rxd1 {[%emt 0:00:01]} Qxe5 {[%emt 0:00:25]} 40. Rf1 {[%emt 0:00:00]} Qe6 {[%emt 0:00:00]} 0-1

[Event "28th WSCC Open 50 2018"]
[Site "Bled"]
[Date "2018.11.18"]
[Round "1"]
[White "Malinovsky, Petr"]
[Black "Arkell, Keith C"]
[Result "0-1"]
[ECO "E00"]
[WhiteElo "2048"]
[BlackElo "2443"]
[Annotator "NA"]
[PlyCount "62"]
[EventDate "2018.11.17"]
[EventType "swiss"]
[EventCountry "SLO"]
[SourceTitle "playchess.com"]
[Source "ChessBase"]
[SourceQuality "1"]
[TimeControl "40/5400+30:1800+30"]

1. d4 {[%emt 0:00:00]} e6 {[%emt 0:00:00]} 2. c4 {[%emt 0:00:00]} Bb4+ {[%emt 0:00:00]} 3. Nc3 {[%emt 0:00:06]} c5 {[%emt 0:00:00]} 4. e3 {[%emt 0:00:28]} Bxc3+ {[%emt 0:00:02] A40: Unusual replies to 1 d4} (4... b6 5. Nge2 Bb7 6. a3 Ba5 7. Bd2 Bxc3 8. Bxc3 Nf6 9. Ng3 cxd4 10. Qxd4 Nc6 11. Qf4 Qe7 12. O-O-O {0-1 (37) Hillarp Persson,T (2509)-Short,N (2688) Helsingor 2017}) 5. bxc3 {[%emt 0:00:10] LiveBook: 29 Games} f5 {[%emt 0:00:18]} 6. g4 {[%emt 0:00:32]} Nf6 {[%emt 0:00:28]} 7. h3 $146 {[%emt 0:05:49]} ({Predecessor:} 7. gxf5 exf5 8. Bd3 d6 9. Qf3 O-O 10. Ne2 Nc6 11. Bd2 Qe8 12. Rg1 {0-1 (31) Matuszewski,M (2325)-Arkell,K (2432) Coulsdon 2011}) 7... d6 {[%emt 0:00:26]} 8. Bd3 {[%emt 0:01:01]} O-O {[%emt 0:00:46]} 9. Ne2 {[%emt 0:02:05]} Nc6 {[%emt 0:00:08]} 10. Ng3 {[%emt 0:01:39]} g6 {[%emt 0:03:02]} 11. g5 {[%emt 0:10:15]} Nd7 {[%emt 0:00:35]} 12. f4 {[%emt 0:02:01]} e5 {[%emt 0:01:37]} 13. Bc2 {[%emt 0:15:32]} Nb6 {[%emt 0:06:00]} 14. h4 {[%emt 0:02:52]} exf4 {[%emt 0:03:11]} 15. exf4 {[%emt 0:00:33]} Nxc4 {[%emt 0:02:23]} 16. h5 {[%emt 0:04:25]} Kg7 {[%emt 0:06:17]} 17. hxg6 {[%emt 0:00:37]} hxg6 {[%emt 0:00:04]} 18. Rh6 {[%emt 0:04:23]} Rh8 {[%emt 0:04:11]} 19. Rxh8 {[%emt 0:04:18]} (19. Bb3 $17 Nb6 20. Kf2 Rxh6 21. gxh6+ Kh7 22. Qd3) 19... Qxh8 {[%emt 0:00:36]} 20. d5 $2 {[%emt 0:02:56]} (20. Qf3) 20... Qh2 {[%emt 0:07:21]} 21. Qf3 {[%emt 0:03:04]} Bd7 {[%emt 0:10:15]} (21... Qxc2 $142 22. dxc6 bxc6) 22. Bd3 $2 {[%emt 0:03:36] [#]} (22. Qf2 Re8+ 23. Kf1 Qh3+ 24. Kg1) 22... N6e5 $1 {[%emt 0:02:41]} 23. fxe5 {[%emt 0:04:20]} Nxe5 {[%emt 0:00:08]} 24. Qe3 {[%emt 0:03:54] [#]} f4 $1 {[%emt 0:00:28] Double Attack} 25. Qe2 {[%emt 0:06:11]} Qxg3+ {[%emt 0:03:20]} 26. Kd2 {[%emt 0:00:29]} Bg4 {[%emt 0:00:50]} 27. Qf1 {[%emt 0:01:18]} Nxd3 {[%emt 0:02:28]} 28. Kc2 $19 {[%emt 0:01:22]} Re8 {[%emt 0:04:28]} 29. Bd2 {[%emt 0:00:43]} Re2 {[%emt 0:02:21]} 30. Qh1 {[%emt 0:01:26]} Rxd2+ {[%emt 0:00:17]} 31. Kxd2 {[%emt 0:00:31]} Qf2+ {[%emt 0:00:05]} 0-1

[Event "28th WSCC Open 50 2018"]
[Site "Bled"]
[Date "2018.11.25"]
[Round "7"]
[White "Soffer, Ram"]
[Black "Ernst, Michael"]
[Result "1-0"]
[ECO "A13"]
[WhiteElo "2472"]
[BlackElo "2197"]
[Annotator "RC"]
[PlyCount "71"]
[EventDate "2018.11.17"]
[EventType "swiss"]
[EventCountry "SLO"]
[SourceTitle "playchess.com"]
[Source "ChessBase"]
[SourceQuality "1"]
[TimeControl "40/5400+30:1800+30"]

1. c4 {[%emt 0:00:00]} e6 {[%emt 0:00:00]} 2. Nf3 {[%emt 0:00:05]} Nf6 {[%emt 0:00:02]} 3. g3 {[%emt 0:00:17]} d5 {[%emt 0:00:06]} 4. Bg2 {[%emt 0:00:06]} dxc4 {[%emt 0:00:13]} 5. O-O {[%emt 0:00:05]} Nbd7 {[%emt 0:00:36]} 6. Qc2 {[%emt 0:00:13]} a6 {[%emt 0:00:28]} 7. a4 {[%emt 0:01:03]} Be7 {[%emt 0:04:45]} 8. Na3 {[%emt 0:03:06]} O-O {[%emt 0:00:45]} 9. Nxc4 {[%emt 0:00:20]} Nd5 {[%emt 0:01:56]} 10. d4 {[%emt 0:03:33]} c5 {[%emt 0:07:00]} 11. Rd1 {[%emt 0:02:29]} Qc7 {[%emt 0:03:37]} 12. e4 {[%emt 0:07:27]} Nb4 {[%emt 0:00:31]} 13. Qb3 {[%emt 0:00:59]} cxd4 {[%emt 0:03:41]} 14. Bf4 {[%emt 0:00:46]} Qc5 {[%emt 0:04:04]} 15. Rac1 {[%emt 0:07:44]} d3 {[%emt 0:06:31]} 16. Ne1 {[%emt 0:09:53]} Qa7 {[%emt 0:03:58]} 17. Nxd3 {[%emt 0:05:07]} Nxd3 {[%emt 0:00:53]} 18. Qxd3 {[%emt 0:00:03]} Nc5 {[%emt 0:01:34]} 19. Qa3 {[%emt 0:04:54]} b5 {[%emt 0:06:43]} 20. axb5 {[%emt 0:00:20]} axb5 {[%emt 0:00:20]} 21. Qxa7 {[%emt 0:00:27]} Rxa7 {[%emt 0:00:02]} 22. Nd6 {[%emt 0:00:07]} e5 {[%emt 0:11:40]} 23. Bxe5 {[%emt 0:07:45]} Bg4 {[%emt 0:01:36]} 24. f3 {[%emt 0:02:37]} Nd7 {[%emt 0:08:10]} 25. Bd4 {[%emt 0:03:10]} Raa8 {[%emt 0:02:20]} 26. Nxb5 {[%emt 0:10:42]} Be6 {[%emt 0:01:06]} 27. Nc7 {[%emt 0:00:26]} Rad8 {[%emt 0:01:34]} 28. Nxe6 {[%emt 0:01:01]} fxe6 {[%emt 0:00:09]} 29. Bc3 {[%emt 0:05:07]} Nc5 {[%emt 0:01:41]} 30. Rxd8 {[%emt 0:01:03]} Rxd8 {[%emt 0:00:18]} 31. Bb4 {[%emt 0:01:59]} Rc8 {[%emt 0:00:06]} 32. Ba3 {[%emt 0:02:04]} Kf7 {[%emt 0:01:23]} 33. Bf1 {[%emt 0:01:35]} g5 {[%emt 0:01:00]} 34. b4 {[%emt 0:00:31]} Ra8 {[%emt 0:00:02]} 35. bxc5 {[%emt 0:00:12]} Rxa3 {[%emt 0:00:03]} 36. c6 {[%emt 0:00:03]} 1-0

[Event "28th WSCC Open 50 2018"]
[Site "Bled"]
[Date "2018.11.25"]
[Round "7"]
[White "Kalegin, Evgenij"]
[Black "Metz, Hartmut"]
[Result "1-0"]
[ECO "B16"]
[WhiteElo "2413"]
[BlackElo "2296"]
[Annotator "RC"]
[PlyCount "147"]
[EventDate "2018.11.17"]
[EventType "swiss"]
[EventCountry "SLO"]
[SourceTitle "playchess.com"]
[Source "ChessBase"]
[SourceQuality "1"]
[TimeControl "40/5400+30:1800+30"]

1. e4 {[%emt 0:00:00]} c6 {[%emt 0:00:00]} 2. d4 {[%emt 0:00:00]} d5 {[%emt 0:00:00]} 3. Nc3 {[%emt 0:00:04]} dxe4 {[%emt 0:00:00]} 4. Nxe4 {[%emt 0:00:07]} Nf6 {[%emt 0:00:00]} 5. Nxf6+ {[%emt 0:00:20]} gxf6 {[%emt 0:00:03]} 6. c3 {[%emt 0:00:10]} Qc7 {[%emt 0:00:03]} 7. Qh5 {[%emt 0:05:45]} Be6 {[%emt 0:01:51]} 8. Ne2 {[%emt 0:04:56]} Qd7 {[%emt 0:13:12]} 9. Nf4 {[%emt 0:01:23]} Bf5 {[%emt 0:06:03]} 10. Bc4 {[%emt 0:06:47]} e6 {[%emt 0:00:46]} 11. O-O {[%emt 0:01:02]} Na6 {[%emt 0:10:43]} 12. Bxa6 {[%emt 0:02:59]} bxa6 {[%emt 0:00:02]} 13. Qe2 {[%emt 0:00:15]} Rg8 {[%emt 0:11:23]} 14. Qxa6 {[%emt 0:01:50]} Bd6 {[%emt 0:01:11]} 15. Nh5 {[%emt 0:03:25]} Be7 {[%emt 0:09:27]} 16. Bh6 {[%emt 0:03:54]} Bg6 {[%emt 0:10:56]} 17. Ng3 {[%emt 0:14:04]} Bd6 {[%emt 0:03:49]} 18. Rfe1 {[%emt 0:04:03]} Qc8 {[%emt 0:06:22]} 19. Qe2 {[%emt 0:01:14]} Qc7 {[%emt 0:00:16]} 20. Qf3 {[%emt 0:02:00]} f5 {[%emt 0:11:35]} 21. d5 {[%emt 0:01:09]} cxd5 {[%emt 0:01:41]} 22. Qxd5 {[%emt 0:00:53]} O-O-O {[%emt 0:00:14]} 23. Qa8+ {[%emt 0:00:28]} Qb8 {[%emt 0:00:11]} 24. Qf3 {[%emt 0:01:10]} Qb7 {[%emt 0:00:24]} 25. Qxb7+ {[%emt 0:03:36]} Kxb7 {[%emt 0:00:01]} 26. Bg5 {[%emt 0:00:46]} Rd7 {[%emt 0:07:08]} 27. Rad1 {[%emt 0:01:24]} Kc7 {[%emt 0:02:27]} 28. Bf6 {[%emt 0:07:13]} Rb8 {[%emt 0:02:28]} 29. b4 {[%emt 0:01:17]} a5 {[%emt 0:00:53]} 30. a3 {[%emt 0:01:02]} axb4 {[%emt 0:00:48]} 31. axb4 {[%emt 0:00:57]} Bxg3 {[%emt 0:00:42]} 32. hxg3 {[%emt 0:00:22]} Rxd1 {[%emt 0:00:35]} 33. Rxd1 {[%emt 0:00:08]} Rb5 {[%emt 0:00:05]} 34. Bd4 {[%emt 0:05:02]} Bh5 {[%emt 0:00:22]} 35. f3 {[%emt 0:02:16]} e5 {[%emt 0:00:24]} 36. Bc5 {[%emt 0:00:08]} e4 {[%emt 0:00:10]} 37. Kf2 {[%emt 0:00:13]} Rb7 {[%emt 0:00:36]} 38. c4 {[%emt 0:00:45]} Kc8 {[%emt 0:00:06]} 39. Rd5 {[%emt 0:02:28]} Bg6 {[%emt 0:00:43]} 40. Ke3 {[%emt 0:00:00]} Rd7 {[%emt 0:00:00]} 41. Bd6 {[%emt 0:13:08]} Ra7 {[%emt 0:01:03]} 42. b5 {[%emt 0:00:09]} Ra2 {[%emt 0:04:52]} 43. c5 {[%emt 0:02:00]} Rxg2 {[%emt 0:00:27]} 44. c6 {[%emt 0:04:32]} Rb2 {[%emt 0:01:34]} 45. fxe4 {[%emt 0:03:11]} fxe4 {[%emt 0:00:15]} 46. Bf4 {[%emt 0:00:52]} f6 {[%emt 0:01:04]} 47. Kd4 {[%emt 0:01:53]} Rb3 {[%emt 0:02:25]} 48. Kc5 {[%emt 0:00:51]} Rc3+ {[%emt 0:08:08]} 49. Kb4 {[%emt 0:02:05]} Rc2 {[%emt 0:01:37]} 50. c7 {[%emt 0:01:50]} Kb7 {[%emt 0:04:30]} 51. Rd8 {[%emt 0:00:15]} Rxc7 {[%emt 0:00:30]} 52. Bxc7 {[%emt 0:00:05]} Kxc7 {[%emt 0:00:03]} 53. Rd1 {[%emt 0:00:16]} Bh5 {[%emt 0:02:19]} 54. Rh1 {[%emt 0:02:53]} Bg6 {[%emt 0:03:15]} 55. Kc5 {[%emt 0:00:18]} h5 {[%emt 0:02:47]} 56. b6+ {[%emt 0:01:02]} Kc8 {[%emt 0:02:56]} 57. Ra1 {[%emt 0:00:23]} Bf5 {[%emt 0:02:28]} 58. Ra8+ {[%emt 0:02:20]} Kb7 {[%emt 0:00:20]} 59. Ra7+ {[%emt 0:00:12]} Kb8 {[%emt 0:00:43]} 60. Re7 {[%emt 0:00:18]} e3 {[%emt 0:00:28]} 61. Rxe3 {[%emt 0:00:13]} Bg4 {[%emt 0:00:16]} 62. Re8+ {[%emt 0:00:23]} Kb7 {[%emt 0:00:11]} 63. Re7+ {[%emt 0:00:52]} Kb8 {[%emt 0:00:17]} 64. b7 {[%emt 0:02:24]} Ka7 {[%emt 0:00:15]} 65. Kc6 {[%emt 0:00:12]} Bf3+ {[%emt 0:00:41]} 66. Kc7 {[%emt 0:00:07]} Bxb7 {[%emt 0:00:16]} 67. Re1 {[%emt 0:00:06]} Ba6 {[%emt 0:00:32]} 68. Ra1 {[%emt 0:00:08]} f5 {[%emt 0:00:50]} 69. Ra2 {[%emt 0:00:19]} h4 {[%emt 0:00:45]} 70. gxh4 {[%emt 0:00:06]} f4 {[%emt 0:00:04]} 71. h5 {[%emt 0:00:12]} f3 {[%emt 0:00:03]} 72. h6 {[%emt 0:00:09]} f2 {[%emt 0:00:33]} 73. Rxf2 {[%emt 0:00:06]} Bc4 {[%emt 0:00:06]} 74. h7 {[%emt 0:00:09]} 1-0

[Event "28th WSCC Open 50 2018"]
[Site "Bled"]
[Date "2018.11.25"]
[Round "7"]
[White "Arakhamia-Grant, Ketevan"]
[Black "Bagaturov, Giorgi"]
[Result "0-1"]
[ECO "B06"]
[WhiteElo "2373"]
[BlackElo "2417"]
[Annotator "ChessBase"]
[PlyCount "146"]
[EventDate "2018.11.17"]
[EventType "swiss"]
[EventCountry "SLO"]
[SourceTitle "playchess.com"]
[Source "ChessBase"]
[SourceQuality "1"]
[TimeControl "40/5400+30:1800+30"]

1. e4 {[%emt 0:00:00]} g6 {[%emt 0:00:00]} 2. d4 {[%emt 0:00:00]} Bg7 {[%emt 0:00:00]} 3. Nc3 {[%emt 0:00:36]} d6 {[%emt 0:00:21]} 4. Be3 {[%emt 0:00:52]} a6 {[%emt 0:00:38]} 5. Qd2 {[%emt 0:02:37]} b5 {[%emt 0:01:30]} 6. f3 {[%emt 0:00:12]} Bb7 {[%emt 0:03:45]} 7. h4 {[%emt 0:00:43]} h5 {[%emt 0:00:44]} 8. Nh3 {[%emt 0:01:36]} Nd7 {[%emt 0:01:36]} 9. Ng5 {[%emt 0:01:33]} Rc8 {[%emt 0:18:25]} 10. a4 {[%emt 0:07:03]} c6 {[%emt 0:01:38]} 11. Be2 {[%emt 0:10:22]} Ngf6 {[%emt 0:01:19]} 12. f4 {[%emt 0:19:06]} e5 {[%emt 0:13:35]} 13. dxe5 {[%emt 0:01:00]} dxe5 {[%emt 0:00:09]} 14. f5 {[%emt 0:00:09]} Qe7 {[%emt 0:10:25]} 15. O-O {[%emt 0:26:25]} O-O {[%emt 0:18:45]} 16. Nd1 {[%emt 0:02:01]} gxf5 {[%emt 0:07:31]} 17. Rxf5 {[%emt 0:01:03]} Rfd8 {[%emt 0:04:57]} 18. Qe1 {[%emt 0:01:20]} Nf8 {[%emt 0:00:41]} 19. Nf2 {[%emt 0:05:29]} Ng6 {[%emt 0:02:20]} 20. Nd3 {[%emt 0:01:50]} c5 {[%emt 0:00:36]} 21. axb5 {[%emt 0:02:35]} axb5 {[%emt 0:00:17]} 22. Ra7 {[%emt 0:00:55]} c4 {[%emt 0:00:34]} 23. Nb4 {[%emt 0:00:46]} Rd7 {[%emt 0:01:50]} 24. g3 {[%emt 0:03:59]} Rf8 {[%emt 0:01:42]} 25. Bf3 {[%emt 0:00:54]} Qd6 {[%emt 0:01:05]} 26. Nh3 {[%emt 0:06:02]} Bc8 {[%emt 0:01:32]} 27. Ra5 {[%emt 0:01:43]} Rdd8 {[%emt 0:01:48]} 28. Rxb5 {[%emt 0:01:49]} Bxf5 {[%emt 0:00:42]} 29. exf5 {[%emt 0:00:04]} Ne7 {[%emt 0:01:40]} 30. Bc5 {[%emt 0:01:06]} Qd7 {[%emt 0:00:56]} 31. Rb7 {[%emt 0:00:16]} Qxf5 {[%emt 0:00:05]} 32. Ng5 {[%emt 0:01:10]} e4 {[%emt 0:02:19]} 33. Bxe7 {[%emt 0:00:29]} exf3 {[%emt 0:00:15]} 34. Bxd8 {[%emt 0:00:24]} Rxd8 {[%emt 0:00:58]} 35. Qf1 {[%emt 0:00:41]} Qc5+ {[%emt 0:01:03]} 36. Kh1 {[%emt 0:00:07]} f2 {[%emt 0:00:26]} 37. c3 {[%emt 0:00:19]} Qc8 {[%emt 0:01:02]} 38. Rxf7 {[%emt 0:00:50]} Ng4 {[%emt 0:01:00]} 39. Rf3 {[%emt 0:00:40]} Re8 {[%emt 0:00:27]} 40. Rxf2 {[%emt 0:00:00]} Nxf2+ {[%emt 0:00:00]} 41. Qxf2 {[%emt 0:00:46]} Rf8 {[%emt 0:00:49]} 42. Qe2 {[%emt 0:06:36]} Qg4 {[%emt 0:02:14]} 43. Qxg4 {[%emt 0:03:21]} hxg4 {[%emt 0:00:04]} 44. Kg2 {[%emt 0:00:27]} Re8 {[%emt 0:01:28]} 45. Kf2 {[%emt 0:01:13]} Bf8 {[%emt 0:03:49]} 46. Nd5 {[%emt 0:06:54]} Bc5+ {[%emt 0:01:06]} 47. Kf1 {[%emt 0:02:16]} Rf8+ {[%emt 0:03:24]} 48. Ke2 {[%emt 0:01:41]} Rf2+ {[%emt 0:08:26]} 49. Ke1 {[%emt 0:00:27]} Rf5 {[%emt 0:01:41]} 50. Nf4 {[%emt 0:06:21]} Be3 {[%emt 0:03:04]} 51. Nge6 {[%emt 0:03:22]} Re5 {[%emt 0:01:26]} 52. Kf1 {[%emt 0:01:17]} Kf7 {[%emt 0:01:27]} 53. Nd8+ {[%emt 0:02:17]} Kf6 {[%emt 0:02:46]} 54. Ne2 {[%emt 0:00:26]} Rf5+ {[%emt 0:00:41]} 55. Nf4 {[%emt 0:00:34]} Bxf4 {[%emt 0:00:36]} 56. gxf4 {[%emt 0:00:02]} Rxf4+ {[%emt 0:00:36]} 57. Kg2 {[%emt 0:00:03]} Re4 {[%emt 0:01:07]} 58. Nb7 {[%emt 0:01:24]} Re6 {[%emt 0:02:54]} 59. Kg3 {[%emt 0:00:39]} Kf5 {[%emt 0:00:26]} 60. Na5 {[%emt 0:00:23]} Re3+ {[%emt 0:00:20]} 61. Kf2 {[%emt 0:00:18]} Re4 {[%emt 0:01:58]} 62. Kg3 {[%emt 0:00:04]} Kg6 {[%emt 0:00:29]} 63. Nc6 {[%emt 0:00:11]} Kh5 {[%emt 0:00:34]} 64. Na5 {[%emt 0:00:57]} Re3+ {[%emt 0:00:33]} 65. Kf2 {[%emt 0:00:06]} Rf3+ {[%emt 0:00:46]} 66. Kg2 {[%emt 0:00:10]} Rd3 {[%emt 0:00:16]} 67. Nxc4 {[%emt 0:00:19]} Kxh4 {[%emt 0:00:05]} 68. Kh2 {[%emt 0:00:32]} Rd1 {[%emt 0:00:23]} 69. Kg2 {[%emt 0:01:30]} g3 {[%emt 0:00:41]} 70. Ne3 {[%emt 0:01:00]} Rd2+ {[%emt 0:00:15]} 71. Kf3 {[%emt 0:00:22]} Rd3 {[%emt 0:00:15]} 72. Ke2 {[%emt 0:00:30]} Rxe3+ {[%emt 0:00:08]} 73. Kxe3 {[%emt 0:00:04]} Kh3 {[%emt 0:00:05]} 0-1